bitfinex/quotes_ETHUSD_20220310
["timestamp","ask_amount","ask_price","bid_price","bid_amount"]
[1646939409085,2.28554682,2604.8,2604.7,0.96007]
[1646939409889,2.31069384,2604.8,2604.7,0.96007]
[1646939410090,2.24323941,2604.8,2604.7,0.96007]
[1646939410294,2.24323941,2604.8,2604.5,1.92051]
[1646939410295,1.53513975,2604.8,2604.5,1.92051]
[1646939410543,1.58863918,2604.7,2604.2,0.96051]
[1646939410740,3.5,2604.6,2603.9,0.25888609]
[1646939410940,0.70926778,2604.4,2604.0,0.94021836]
[1646939411139,1.0,2604.3,2603.9,0.25545734]
[1646939411344,4.20926778,2604.4,2604.0,0.94021008]
[1646939411345,0.62816068,2604.2,2604.0,0.94021008]
[1646939411540,0.62816068,2604.1,2604.0,0.94021008]
[1646939411941,0.62816068,2604.2,2604.0,0.94021008]
[1646939412140,0.62816068,2604.1,2604.0,0.94021008]
[1646939412540,0.62816068,2604.2,2604.0,0.94021008]
[1646939412942,0.62816068,2604.2,2604.0,2.86120008]
[1646939413144,0.62816068,2604.2,2604.1,0.94021008]
[1646939413941,0.62816068,2604.2,2603.9,0.96947553]
[1646939414195,0.62816068,2604.2,2604.0,0.153637]
[1646939414590,0.62816068,2604.2,2603.9,0.96604734]
[1646939414792,0.62816068,2604.2,2603.9,0.96947551]
[1646939415090,0.62816068,2604.2,2604.0,1.90087298]
[1646939415391,0.62816068,2604.2,2604.0,0.96049]
[1646939417394,0.62816068,2604.2,2604.1,0.94031908]
[1646939419239,0.65319535,2604.2,2604.1,0.94031908]
[1646939419945,0.02503467,2604.2,2604.1,0.94031908]
[1646939420144,0.65373556,2604.2,2604.1,1.52444441]
[1646939420343,0.02503467,2604.2,2604.1,0.94031908]
[1646939420745,0.65380046,2604.2,2604.1,0.94031908]
[1646939421347,0.65380046,2604.2,2604.1,0.93969434]
[1646939421545,0.65380046,2604.2,2604.0,0.96049]
[1646939421788,0.62876579,2604.1,2604.0,1.114117]
[1646939421987,0.62876579,2604.1,2604.0,1.09336772]
[1646939422387,0.62876579,2604.1,2604.0,0.93974072]
[1646939427439,0.62876579,2604.1,2604.0,0.92804596]
[1646939427639,0.62876579,2604.1,2603.9,2.18052267]
[1646939427839,0.62876579,2604.1,2604.0,0.92815013]
[1646939428041,0.62876579,2604.1,2603.9,2.18052267]
[1646939428243,0.62876579,2604.1,2604.0,0.92817972]
[1646939428448,0.62876579,2604.1,2604.0,0.92810056]
[1646939429900,0.6538065,2604.1,2604.0,0.92810056]
[1646939431100,0.62876579,2604.1,2604.0,0.92810056]
[1646939431505,0.62876579,2604.1,2604.0,0.92851813]
[1646939433138,1.78176579,2604.1,2604.0,0.92851813]
[1646939433738,1.83262363,2604.1,2604.0,0.92851813]
[1646939434544,1.8826326,2604.1,2604.0,0.92851813]
[1646939434745,1.8826326,2604.1,2604.0,0.92716931]
[1646939434944,1.83177476,2604.1,2604.0,0.92716931]
[1646939437491,1.83177476,2604.1,2603.9,0.16618088]
[1646939437691,1.20300897,2604.1,2603.9,0.17011787]
[1646939438495,1.20300897,2604.1,2603.9,1.16618088]
[1646939438895,1.20300897,2604.1,2603.9,1.17011783]
[1646939439303,9.16e-05,2604.0,2603.9,1.24398503]
[1646939439700,9.16e-05,2604.0,2603.9,1.24004808]
[1646939440200,9.16e-05,2604.0,2603.9,1.24365091]
[1646939440435,9.16e-05,2604.0,2603.9,2.13006371]
[1646939441038,9.16e-05,2604.0,2603.9,2.12646088]
[1646939443739,9.16e-05,2604.0,2603.9,1.16618088]
[1646939444893,9.16e-05,2604.0,2603.9,0.16618088]
[1646939445092,0.04854337,2604.0,2603.9,0.16618088]
[1646939445492,2.42108821,2604.0,2603.9,0.16618088]
[1646939447092,0.04854337,2604.0,2603.9,0.16618088]
[1646939448341,0.09905626,2604.0,2603.9,0.16618088]
[1646939448541,4.75205626,2604.0,2603.9,0.00545734]
[1646939448742,1.20154337,2604.0,2603.9,0.00545734]
[1646939449551,4.70154337,2604.0,2603.9,0.00545734]
[1646939449748,6.04808337,2604.0,2603.9,0.00545734]
[1646939450550,6.75735115,2604.0,2603.9,0.00545734]
[1646939451551,2.16228337,2604.0,2603.9,0.00545734]
[1646939451799,1.20154337,2604.0,2603.9,0.00545734]
[1646939454804,1.20154337,2604.0,2603.9,0.91102286]
[1646939454805,1.86526283,2604.0,2603.9,0.91102286]
[1646939457638,0.02496826,2604.1,2603.9,0.91102286]
[1646939457639,0.51379383,2604.2,2603.9,5.37143286]
[1646939457839,0.69513882,2604.1,2604.0,1.86597552]
[1646939462606,0.74407368,2604.1,2604.0,1.86597552]
[1646939465250,0.76805892,2604.1,2604.0,1.86597552]
[1646939469493,0.74407368,2604.1,2604.0,1.86597552]
[1646939477098,0.69513882,2604.1,2604.0,1.86597552]
[1646939477699,0.5128,2604.3,2604.0,1.86597552]
[1646939477940,0.68934428,2604.2,2604.1,2.82628552]
[1646939478155,0.5128,2604.3,2604.1,2.82628552]
[1646939478343,0.5128,2604.3,2604.2,0.87938884]
[1646939478743,0.5128,2604.3,2604.1,1.92072]
[1646939478945,0.68935075,2604.2,2604.1,1.92072]
[1646939479143,0.68935075,2604.2,2604.1,2.80017803]
[1646939481150,0.68935075,2604.2,2604.1,0.87945803]
[1646939483306,1.64993475,2604.2,2604.1,0.87945803]
[1646939483504,1.64993475,2604.2,2604.1,0.87989628]
[1646939483707,0.00144954,2604.1,2603.9,0.00891088]
[1646939484004,2.99807949,2604.1,2603.9,0.00891088]
[1646939484203,0.68935075,2604.0,2603.9,0.00545734]
[1646939484604,2.06216968,2604.0,2603.9,0.00891076]
[1646939485441,3.02291968,2604.0,2603.9,0.00545734]
[1646939486243,2.63711968,2604.0,2603.9,0.00545734]
[1646939486644,3.02291968,2604.0,2603.9,0.00545734]
[1646939488045,3.73218746,2604.0,2603.9,0.00545734]
[1646939489044,3.74300335,2604.0,2603.9,0.00545734]
[1646939489500,3.03373557,2604.0,2603.9,0.00545734]
[1646939489700,3.74300335,2604.0,2603.9,0.00545734]
[1646939490300,6.73123246,2604.0,2603.9,0.00545734]
[1646939490502,6.81296468,2604.0,2603.9,0.00545734]
[1646939490903,4.82473557,2604.0,2603.9,0.00545734]
[1646939491703,6.81824402,2604.0,2603.9,0.00545734]
[1646939491901,7.7623769,2604.0,2603.9,0.00545734]
[1646939492102,5.76886845,2604.0,2603.9,0.00545734]
[1646939492304,4.82473557,2604.0,2603.9,0.00545734]
[1646939494945,4.63273557,2604.0,2603.9,0.00545734]
[1646939495747,3.94693557,2604.0,2603.9,0.00545734]
[1646939495947,2.64793557,2604.0,2603.9,0.00545734]
[1646939497593,4.97786845,2604.0,2603.9,0.00545734]
[1646939497792,5.27786845,2604.0,2603.9,0.00545734]
[1646939499599,4.89206845,2604.0,2603.9,0.00545734]
[1646939499999,3.94793557,2604.0,2603.9,0.00545734]
[1646939504609,2.3697544,2604.0,2603.9,0.00545734]
[1646939504807,0.70016664,2604.0,2603.9,0.00545734]
[1646939505806,0.01081589,2604.0,2603.9,0.00545734]
[1646939506007,0.67622159,2604.0,2603.9,0.00545734]
[1646939506606,0.67622159,2604.0,2603.9,0.00445905]
[1646939509254,1.38505935,2604.0,2603.9,0.00445905]
[1646939510255,0.67622159,2604.0,2603.8,0.00345346]
[1646939510454,0.6654057,2603.9,2603.8,0.00345346]
[1646939510655,0.6654057,2603.9,2603.7,1.92159]
[1646939510957,0.6654057,2603.9,2603.8,0.00345348]
[1646939511999,1.6261974,2603.9,2603.7,1.92159]
[1646939512198,0.6654057,2603.8,2603.7,1.92504351]
[1646939512396,0.6654057,2603.8,2603.7,0.96429351]
[1646939512798,1.37424346,2603.8,2603.7,0.96429351]
[1646939513196,1.37424346,2603.8,2603.7,0.96084]
[1646939514802,0.6654057,2603.8,2603.7,0.96084]
[1646939515947,0.5128,2603.8,2603.7,0.96084]
[1646939516346,1.1782057,2603.8,2603.7,0.96084]
[1646939521800,1.88704346,2603.8,2603.7,0.96084]
[1646939522202,2.18704346,2603.8,2603.7,0.96084]
[1646939522404,3.14789376,2603.8,2603.6,1.92492356]
[1646939522601,0.6654057,2603.7,2603.6,1.92492356]
[1646939522800,1.8184057,2603.7,2603.6,1.92147]
[1646939523050,1.8184057,2603.7,2603.6,1.92492356]
[1646939523850,1.8184057,2603.7,2603.6,0.23618294]
[1646939524051,1.8184057,2603.7,2603.6,0.23272938]
[1646939524457,2.3312057,2603.7,2603.6,0.23272938]
[1646939525258,3.04110036,2603.7,2603.6,0.23272938]
[1646939528196,2.3312057,2603.7,2603.6,0.23272938]
[1646939529097,2.3312057,2603.7,2603.6,0.26743005]
[1646939531548,3.27533858,2603.7,2603.6,0.26743005]
[1646939531747,2.3312057,2603.7,2603.6,0.26743005]
[1646939532146,3.27533858,2603.7,2603.6,0.26743005]
[1646939533051,2.76253858,2603.7,2603.6,0.26743005]
[1646939533448,3.27533858,2603.7,2603.6,0.26743005]
[1646939534904,2.3312057,2603.7,2603.6,0.26743005]
[1646939535302,3.04221816,2603.7,2603.6,1.15195211]
[1646939535502,2.3312057,2603.7,2603.6,1.15195211]
[1646939538753,2.40841715,2603.7,2603.6,1.09858913]
[1646939539457,2.40841715,2603.7,2603.6,1.14833348]
[1646939543708,2.40698922,2603.7,2603.6,1.14833348]
[1646939543907,2.40698922,2603.7,2603.6,1.14876029]
[1646939544112,2.40698922,2603.7,2603.6,4.72397934]
[1646939544113,1.153,2603.7,2603.6,4.72397934]
[1646939544311,1.153,2603.7,2603.6,4.6487012]
[1646939544512,0.00144954,2604.1,2603.8,1.24230112]
[1646939544710,0.71101246,2604.3,2603.9,3.5]
[1646939544911,6.0069,2604.9,2603.9,3.692]
[1646939544912,0.71101246,2604.4,2603.9,3.692]
[1646939545111,1.41981414,2604.9,2604.1,0.3858]
[1646939545314,0.01491722,2605.0,2604.3,0.3858]
[1646939545565,0.04911406,2605.3,2604.5,0.96012]
[1646939545566,1.41981414,2605.2,2604.5,0.96012]
[1646939545762,1.41981414,2605.2,2604.6,3.5]
[1646939545963,1.41981414,2605.2,2604.7,2.17024]
[1646939546173,0.01009479,2605.0,2604.7,2.17024]
[1646939546964,2.37998324,2605.4,2604.7,2.17024]
[1646939547165,0.97030674,2605.4,2604.7,3.13036]
[1646939547365,1.93050674,2605.4,2604.8,0.96016]
[1646939547565,1.0,2604.9,2604.8,0.96016]
[1646939548773,1.0,2604.9,2604.8,4.46016]
[1646939548967,1.0,2604.9,2604.8,0.96016]
[1646939550003,1.0,2604.9,2604.8,1.00060253]
[1646939554550,1.0,2604.9,2604.8,2.15420153]
[1646939554751,1.0,2604.9,2604.8,2.54000153]
[1646939554952,0.01561529,2605.4,2604.8,2.38640253]
[1646939555152,0.72203025,2605.4,2604.8,2.38640253]
[1646939555352,1.77713883,2605.5,2604.8,1.00060253]
[1646939555550,0.01616072,2605.4,2604.8,1.00060253]
[1646939555951,1.0,2605.1,2604.8,1.00060253]
[1646939556150,1.0,2605.1,2604.8,1.96071253]
[1646939556351,1.0,2605.1,2604.9,1.92027]
[1646939558403,1.0,2605.1,2604.9,2.92027]
[1646939558806,1.0,2605.1,2604.9,1.92027]
[1646939559006,1.0,2605.1,2605.0,1.0]
[1646939559209,1.0,2605.1,2605.0,1.06844401]
[1646939560009,0.01585737,2605.5,2605.2,0.96003]
[1646939560209,1.00979353,2605.7,2605.2,1.21003]
[1646939560210,1.71620849,2605.7,2605.2,1.21003]
[1646939560448,0.01585726,2605.6,2605.2,1.21003]
[1646939560647,0.01585726,2605.6,2605.4,1.0]
[1646939561047,1.0,2605.5,2605.4,1.0]
[1646939561250,1.0,2605.5,2605.2,3.13012]
[1646939561449,1.0,2605.5,2605.3,1.92008]
[1646939561852,1.0,2605.5,2605.4,1.92009]
[1646939564301,1.67236891,2605.5,2605.4,1.92009]
[1646939564506,1.67236891,2605.5,2605.4,0.23239583]
[1646939564905,1.67236891,2605.5,2605.4,1.23239583]
[1646939565106,1.0,2605.5,2605.4,4.73239583]
[1646939565304,1.0,2605.5,2605.4,0.31521656]
[1646939565503,0.01504663,2606.0,2605.6,0.026]
[1646939565704,0.64060429,2605.9,2605.6,0.98574]
[1646939566305,0.05046424,2606.2,2605.6,0.98574]
[1646939566504,0.64025407,2606.1,2605.6,0.98574]
[1646939567108,0.64025407,2606.1,2605.6,1.94549]
[1646939567308,0.64025407,2606.1,2606.0,1.0]
[1646939568155,1.60020407,2606.1,2605.9,1.91946]
[1646939568356,0.64025407,2606.0,2605.9,1.91946]
[1646939568554,0.64025407,2606.0,2605.9,0.95973]
[1646939572205,1.02605407,2606.0,2605.9,0.95973]
[1646939572405,1.02605407,2606.0,2605.8,0.3177577]
[1646939572406,1.3858,2605.9,2605.8,0.3177577]
[1646939572601,5.71785407,2605.9,2605.8,0.3177577]
[1646939572901,4.71785407,2605.9,2605.8,0.3177577]
[1646939573100,1.21785407,2605.9,2605.8,0.3177577]
[1646939573301,1.73246903,2605.9,2605.8,0.3177577]
[1646939573500,1.02605407,2605.9,2605.8,0.3177577]
[1646939574102,1.02605407,2605.9,2605.8,0.25]
[1646939574305,0.64025407,2605.9,2605.8,0.25]
[1646939575308,1.02605407,2605.9,2605.8,0.25]
[1646939575757,4.51850434,2605.9,2605.8,0.25]
[1646939575959,1.01850434,2605.9,2605.8,0.25]
[1646939578259,1.7249193,2605.9,2605.8,0.25]
[1646939579305,5.2249193,2605.9,2605.8,0.25]
[1646939579709,1.5947094,2605.7,2605.5,1.92013]
[1646939579908,16.31077483,2605.6,2605.3,0.25]
[1646939580107,0.05532068,2605.5,2605.3,0.25]
[1646939580307,1.43246059,2605.4,2605.3,2.17041]
[1646939580504,4.8858,2605.4,2605.3,2.17041]
[1646939580805,5.8858,2605.4,2605.3,2.17041]
[1646939581304,2.0,2605.4,2605.3,2.17041]
[1646939581504,2.0,2605.4,2605.3,0.25]
[1646939581704,1.0,2605.4,2605.3,0.25]
[1646939582105,1.3858,2605.4,2605.3,0.25]
[1646939582306,1.3858,2605.4,2604.8,2.36232]
[1646939582307,14.11077483,2605.4,2604.8,2.36232]
[1646939582508,12.81152586,2605.2,2604.8,0.4418]
[1646939582813,1.09152586,2605.0,2604.8,0.25]
[1646939583065,1.09152586,2605.0,2603.6,1.1463]
[1646939583066,0.3858,2604.7,2603.8,1.24230112]
[1646939583265,0.9607582,2604.5,2603.8,3.16354112]
[1646939583467,1.92155,2604.4,2603.9,0.25]
[1646939583665,2.98645,2604.4,2603.9,0.25]
[1646939583865,1.9382079,2604.1,2603.9,0.25]
[1646939584573,1.9382079,2604.1,2603.9,0.04543929]
[1646939584970,1.9382079,2604.1,2603.9,1.96683929]
[1646939585771,1.9382079,2604.1,2603.9,1.97061941]
[1646939585971,2.3240079,2604.1,2603.9,0.00378012]
[1646939586172,14.5360079,2604.1,2603.9,0.00378012]
[1646939586371,12.1058,2604.0,2603.9,0.00378012]
[1646939586572,12.2978,2604.0,2603.9,0.00378012]
[1646939586805,0.9609,2603.9,2603.8,1.24230112]
[1646939587106,1.4529,2603.9,2603.3,1.92166]
[1646939587304,1.4529,2603.9,2603.5,1.92171]
[1646939587305,0.492,2603.9,2603.5,1.92171]
[1646939587504,13.5978,2604.0,2603.5,1.92171]
[1646939588303,0.9609024,2603.8,2603.5,1.92171]
[1646939588503,2.03004319,2603.7,2603.5,1.92171]
[1646939589308,2.03004319,2603.7,2603.5,1.92574922]
[1646939590118,2.03004319,2603.7,2603.5,1.92171]
[1646939590568,2.03004319,2603.7,2603.5,0.00403922]
[1646939590569,3.75854319,2603.7,2603.5,0.00403922]
[1646939590761,3.75854319,2603.7,2603.0,10.0]
[1646939590762,33.8858,2603.5,2603.0,10.0]
[1646939590958,13.88249348,2603.4,2603.0,10.0]
[1646939591159,0.0522917,2603.2,2603.0,10.0]
[1646939591360,1.0060534,2603.1,2603.0,10.0]
[1646939592365,1.3060534,2603.1,2603.0,10.0]
[1646939592565,1.4980534,2603.1,2603.0,10.0]
[1646939592767,1.3060534,2603.1,2603.0,10.0]
[1646939593171,2.2673334,2603.1,2603.0,10.0]
[1646939595002,2.2673334,2603.1,2603.0,9.997846]
[1646939597204,13.9873334,2603.1,2603.0,9.997846]
[1646939597408,14.9022334,2603.1,2603.0,9.997846]
[1646939597605,15.9022334,2603.1,2603.0,9.997846]
[1646939599452,15.9022334,2603.1,2603.0,10.06645929]
[1646939602796,4.1822334,2603.1,2603.0,10.06645929]
[1646939603000,0.96128,2603.1,2603.0,10.06645929]
[1646939604605,0.96128,2603.1,2603.0,8.37773854]
[1646939604902,2.92258,2603.3,2603.0,10.34508991]
[1646939605103,2.92258,2603.3,2603.0,10.59508991]
[1646939605656,2.92258,2603.3,2603.0,11.78957506]
[1646939605857,2.92258,2603.3,2603.1,0.96101]
[1646939607156,2.22258,2603.3,2603.1,0.96101]
[1646939607357,3.22258,2603.3,2603.1,0.96465919]
[1646939607556,2.22258,2603.3,2603.1,0.96465919]
[1646939607762,3.22258,2603.3,2603.1,0.96465919]
[1646939607957,1.92258,2603.3,2603.1,0.96465919]
[1646939608357,1.92258,2603.3,2603.1,0.96101]
[1646939608557,1.92258,2603.3,2603.1,0.96465919]
[1646939609401,1.921983,2603.4,2603.1,0.96465919]
[1646939609601,1.921983,2603.4,2603.2,0.04238187]
[1646939610402,0.961,2603.4,2603.2,0.04238187]
[1646939610603,1.92196,2603.6,2603.2,1.00327187]
[1646939611001,1.92196,2603.6,2603.2,1.0067219]
[1646939612001,1.07067897,2603.5,2603.2,1.00327187]
[1646939612201,2.03159897,2603.5,2603.3,0.96435998]
[1646939613247,2.03159897,2603.5,2603.3,0.96091]
[1646939613448,2.03159897,2603.5,2603.3,0.96438003]
[1646939614052,2.03159897,2603.5,2603.4,0.04231993]
[1646939614249,1.07067897,2603.5,2603.4,0.04231993]
[1646939617096,1.71642504,2603.5,2603.4,0.04231993]
[1646939617597,1.07067897,2603.5,2603.4,0.04231993]
[1646939618198,1.71696166,2603.5,2603.4,0.04231993]
[1646939619405,1.71696166,2603.5,2603.4,0.02150587]
[1646939619604,2.67793166,2603.5,2603.4,0.02150587]
[1646939622054,1.60725269,2603.5,2603.4,0.02150587]
[1646939622256,0.64628269,2603.5,2603.4,0.02150587]
[1646939622454,4.9481,2603.9,2603.4,0.02150587]
[1646939622455,0.64628269,2603.8,2603.4,0.02150587]
[1646939622655,0.64628269,2603.8,2603.5,0.96074]
[1646939622856,0.64628269,2603.8,2603.5,2.88223]
[1646939623054,1.1556527,2603.7,2603.5,2.88223]
[1646939623656,0.64628269,2603.6,2603.5,2.88223]
[1646939624804,0.64628269,2603.6,2603.5,1.19368322]
[1646939626210,0.64628269,2603.9,2603.5,1.19368322]
[1646939626407,0.64628269,2603.6,2603.5,1.19368322]
[1646939626606,0.64628269,2603.8,2603.5,1.19368322]
[1646939626807,0.70612021,2604.1,2603.7,1.92149]
[1646939627013,0.70612021,2604.1,2603.8,3.58358326]
[1646939627014,0.61928358,2604.1,2603.8,3.58358326]
[1646939627210,0.61928358,2604.1,2603.8,2.00482326]
[1646939628658,0.61928358,2604.1,2603.9,0.07201537]
[1646939628858,0.61928358,2604.1,2603.9,2.95336537]
[1646939629058,0.61928358,2604.1,2604.0,0.08196431]
[1646939629666,1.71026656,2604.1,2604.0,0.08196431]
[1646939629979,3.37709677,2604.1,2604.0,0.08196431]
[1646939631164,3.37709677,2604.1,2603.9,2.88135]
[1646939631364,0.61928358,2604.0,2603.9,2.88135]
[1646939633806,0.61928358,2604.0,2603.9,2.90195415]
[1646939634308,0.70612021,2604.1,2603.9,2.90195415]
[1646939634712,1.32540379,2604.1,2603.9,2.90195415]
[1646939634909,0.61957563,2604.0,2603.9,2.90195415]
[1646939635110,0.70612021,2604.1,2603.9,2.90195415]
[1646939636754,2.59996252,2604.1,2603.9,2.90195415]
[1646939636956,0.61957563,2604.0,2603.9,2.90195415]
[1646939638057,0.61957563,2604.0,2603.9,0.02060415]
[1646939638258,4.11957563,2604.0,2603.9,0.02060415]
[1646939640526,6.61357563,2604.0,2603.9,0.02060415]
[1646939640720,7.26857563,2604.0,2603.9,0.02060415]
[1646939640920,18.98857563,2604.0,2603.9,0.02060415]
[1646939643053,19.98857563,2604.0,2603.9,0.02060415]
[1646939643354,22.46350847,2604.0,2603.9,0.00219485]
[1646939643554,23.46350847,2604.0,2603.9,0.00219485]
[1646939643853,22.34369433,2604.0,2603.4,0.00376845]
[1646939644054,12.1058,2603.6,2603.4,0.00376845]
[1646939644253,4.50537563,2603.5,2603.4,0.00376845]
[1646939644459,4.50537563,2603.5,2603.1,0.96109]
[1646939644659,1.32830683,2603.4,2603.1,0.96109]
[1646939645659,2.03638826,2603.1,2603.0,7.87671897]
[1646939645859,2.65596389,2603.1,2603.0,7.87671897]
[1646939646060,1.58067563,2603.1,2603.0,8.83783897]
[1646939646259,0.61957563,2603.1,2603.0,8.83783897]
[1646939649312,0.61957563,2603.1,2603.0,8.94815235]
[1646939654308,0.61957563,2603.1,2603.0,9.87431892]
[1646939656314,0.61957563,2603.1,2603.0,10.85385718]
[1646939657713,0.61957563,2603.1,2603.0,9.90013484]
[1646939658358,0.61957563,2603.1,2603.0,8.92059658]
[1646939658955,1.58770339,2603.1,2603.0,8.92059658]
[1646939659559,1.58770339,2603.1,2603.0,8.94815235]
[1646939662407,0.61957563,2603.1,2603.0,8.94815235]
[1646939663412,0.61957563,2603.1,2603.0,9.92802338]
[1646939663607,0.61957563,2603.1,2603.0,10.8614742]
[1646939664311,0.61957563,2603.1,2603.0,11.0151642]
[1646939664511,0.61957563,2603.1,2603.0,10.8614742]
[1646939665111,0.61957563,2603.1,2603.0,10.83391843]
[1646939665962,0.61957563,2603.1,2603.0,9.8540474]
[1646939666459,0.61957563,2603.1,2603.0,10.52883931]
[1646939667560,0.61957563,2603.1,2603.0,8.83991464]
[1646939669215,0.61957563,2603.1,2603.0,9.80103464]
[1646939669408,0.61957563,2603.1,2603.0,9.85380498]
[1646939669609,0.61957563,2603.1,2603.0,9.88038623]
[1646939669810,0.61957563,2603.1,2603.0,11.19024554]
[1646939670114,1.7087312,2603.9,2603.3,0.96058]
[1646939670309,1.7087312,2603.9,2603.5,0.25]
[1646939670509,0.55589042,2603.8,2603.5,0.25]
[1646939671010,0.55589042,2603.8,2603.5,1.21556242]
[1646939671214,0.55589042,2603.8,2603.6,0.96058]
[1646939672812,0.7087312,2603.7,2603.6,0.96058]
[1646939673658,0.76081311,2603.7,2603.6,0.96058]
[1646939673863,1.31670353,2603.7,2603.6,0.96058]
[1646939674060,0.60797233,2603.7,2603.6,0.96058]
[1646939674262,0.60797233,2603.7,2603.6,0.98475056]
[1646939675067,4.05589042,2603.7,2603.6,0.98475056]
[1646939675368,0.55589042,2603.7,2603.6,0.98475056]
[1646939675565,4.05589042,2603.7,2603.6,0.96065056]
[1646939675766,5.38484432,2603.7,2603.6,7.056e-05]
[1646939675965,4.43989042,2603.7,2603.6,7.056e-05]
[1646939676165,1.8858693,2603.7,2603.6,7.056e-05]
[1646939676370,0.93989042,2603.7,2603.6,7.056e-05]
[1646939676905,4.43989042,2603.7,2603.6,7.056e-05]
[1646939677105,0.93989042,2603.7,2603.6,7.056e-05]
[1646939677404,2.13189042,2603.7,2603.6,7.056e-05]
[1646939677606,1.13189042,2603.7,2603.6,7.056e-05]
[1646939678007,2.07816836,2603.7,2603.6,7.056e-05]
[1646939678207,1.50216836,2603.7,2603.6,7.056e-05]
[1646939678407,0.94627794,2603.7,2603.6,7.056e-05]
[1646939678607,0.55589042,2603.7,2603.6,7.056e-05]
[1646939678807,1.50216836,2603.8,2603.6,7.056e-05]
[1646939679510,1.50216836,2603.8,2603.6,0.04794794]
[1646939679711,0.94627794,2603.7,2603.6,0.04794794]
[1646939682057,1.50216836,2603.7,2603.6,0.04794794]
[1646939683362,0.55589042,2603.7,2603.6,0.04794794]
[1646939683561,1.50216836,2603.7,2603.6,0.04794794]
[1646939683761,0.94627794,2603.7,2603.6,0.04794794]
[1646939685218,0.55589042,2603.7,2603.6,0.04794794]
[1646939686620,0.384,2603.7,2603.6,0.04794794]
[1646939686827,5.85732127,2603.7,2603.6,0.04794794]
[1646939687220,6.04932127,2603.7,2603.6,0.04794794]
[1646939687618,6.04932127,2603.7,2603.4,0.3308009]
[1646939687619,7.01018127,2603.7,2603.4,0.3308009]
[1646939687819,0.94788871,2603.5,2603.4,0.32707157]
[1646939688059,1.50377913,2603.5,2603.4,0.3308009]
[1646939688359,2.58045781,2603.5,2603.4,0.3308009]
[1646939688560,1.6325691,2603.5,2603.4,0.3308009]
[1646939689061,1.6325691,2603.5,2603.4,0.32036187]
[1646939692118,1.6325691,2603.5,2603.3,1.9254583]
[1646939692315,1.26681463,2603.4,2603.3,1.9254583]
[1646939692515,1.26681463,2603.4,2603.3,1.92173]
[1646939692915,1.26681463,2603.4,2603.3,1.92545861]
[1646939693715,1.26681463,2603.4,2603.3,1.92173]
[1646939694114,1.26681463,2603.4,2603.3,1.94201356]
[1646939695023,0.55589042,2603.4,2603.3,1.94201356]
[1646939695759,0.61202821,2603.4,2603.3,1.94201356]
[1646939697462,1.55991692,2603.4,2603.3,1.94201356]
[1646939698068,0.55589042,2603.4,2603.3,1.94201356]
[1646939699524,0.55589042,2603.4,2603.3,1.98309272]
[1646939701324,0.61440703,2603.4,2603.3,1.98309272]
[1646939701724,1.56229574,2603.4,2603.3,1.98309272]
[1646939702965,0.61440703,2603.4,2603.3,1.98309272]
[1646939705771,1.56229574,2603.4,2603.3,1.98309272]
[1646939705971,0.61440703,2603.4,2603.3,1.94268105]
[1646939706170,0.55589042,2603.4,2603.3,1.94268105]
[1646939707621,0.55589042,2603.4,2603.3,0.25355642]
[1646939708622,0.55589042,2603.4,2603.0,7.20348981]
[1646939708826,1.41743085,2603.2,2602.7,0.24983338]
[1646939709025,0.94758974,2602.8,2601.8,2.61863479]
[1646939709227,0.71071561,2602.4,2602.0,0.96147]
[1646939709428,0.71071561,2602.4,2602.1,1.08532786]
[1646939709729,1.0,2602.2,2602.1,1.08532786]
[1646939709928,1.55589042,2602.2,2602.1,1.08532786]
[1646939710126,1.55589042,2602.2,2602.0,0.96147]
[1646939710334,0.55589042,2602.1,2602.0,0.96147]
[1646939710569,0.55589042,2602.1,2602.0,2.04568921]
[1646939711972,1.0,2602.2,2602.0,2.42968921]
[1646939712175,1.0,2602.2,2602.1,1.53640351]
[1646939712375,0.48494304,2602.2,2602.1,1.53640351]
[1646939712572,2.09488974,2603.1,2602.1,1.53640351]
[1646939712573,0.71071561,2602.9,2602.1,1.46821921]
[1646939712774,0.71071561,2602.9,2602.3,0.384]
[1646939712975,0.71071561,2602.9,2602.4,1.08421921]
[1646939713172,0.71071561,2602.9,2602.4,1.92199]
[1646939713372,1.19564406,2602.9,2602.4,1.92199]
[1646939713574,4.69564406,2602.9,2602.4,1.92199]
[1646939713773,0.1905,2603.0,2602.4,2.88299]
[1646939713774,0.48492845,2602.8,2602.4,2.88299]
[1646939713972,0.71071561,2603.0,2602.4,2.88299]
[1646939713973,0.48492845,2602.7,2602.4,2.88299]
[1646939714227,1.85801561,2603.1,2602.7,0.15755445]
[1646939714422,0.48466669,2603.0,2602.7,1.08635445]
[1646939714621,0.48466669,2602.9,2602.8,0.0835014]
[1646939714822,1.088e-05,2603.2,2602.8,4.46756721]
[1646939715026,1.41743085,2603.9,2602.8,4.46756721]
[1646939715027,3.48031876,2604.3,2603.1,18.884]
[1646939715224,0.94529717,2604.2,2603.4,0.384]
[1646939715421,1.94529717,2604.3,2603.5,0.384]
[1646939715624,1.0,2604.3,2603.6,0.08454292]
[1646939715820,1.0,2604.3,2603.9,1.92064]
[1646939715821,0.01612177,2604.3,2603.9,1.92064]
[1646939716022,0.01612177,2604.3,2604.0,0.07973059]
[1646939716220,0.01612177,2604.3,2604.1,1.55762004]
[1646939716425,0.01612177,2604.3,2604.2,0.06873667]
[1646939716625,0.94529717,2604.9,2604.2,0.06873667]
[1646939716822,0.94529717,2605.0,2604.2,0.06873667]
[1646939717225,0.94529717,2605.1,2604.2,2.37300667]
[1646939717421,0.94529717,2605.1,2604.9,1.03725203]
[1646939717622,0.94529717,2605.1,2604.9,1.91445203]
[1646939717822,0.94529717,2605.2,2604.9,1.91445203]
[1646939718065,1.05222311,2605.3,2604.9,1.91445203]
[1646939718066,1.99752028,2605.3,2604.9,1.91445203]
[1646939718266,0.00252711,2605.1,2604.9,1.91445203]
[1646939718465,0.00252711,2605.1,2604.9,0.8772]
[1646939718664,0.00252711,2605.1,2604.9,0.96013]
[1646939719066,1.90557717,2605.2,2604.9,0.96013]
[1646939719265,1.90557717,2605.2,2605.0,2.07808445]
[1646939719469,0.00252711,2605.1,2605.0,2.07808445]
[1646939720471,0.96028,2605.2,2605.0,2.07808445]
[1646939720671,0.96431483,2605.2,2605.0,2.07808445]
[1646939721720,0.96028,2605.2,2605.0,2.07808445]
[1646939721912,0.9643148,2605.2,2605.0,2.07808445]
[1646939722713,0.96028,2605.2,2605.0,2.07808445]
[1646939723113,0.9643148,2605.2,2605.0,2.07808445]
[1646939723913,0.96028,2605.2,2605.0,2.07808445]
[1646939724114,0.9643148,2605.2,2605.0,1.92053]
[1646939724517,0.9643148,2605.2,2605.1,0.3151089]
[1646939725119,0.05222311,2605.3,2605.1,1.20167183]